bitfinex/quotes_SOLUSD_20260201
["timestamp","ask_amount","ask_price","bid_price","bid_amount"]
[1769988329329,23.18298132,100.48,100.43,24.89149743]
[1769988329511,23.18298132,100.45,100.43,9.95647155]
[1769988329710,23.18298132,100.44,100.42,27.66]
[1769988329922,23.18298132,100.48,100.43,23.18298132]
[1769988330114,23.18298132,100.44,100.41,9.95889546]
[1769988330316,27.62685253,100.42,100.34,27.45612636]
[1769988330530,23.18298132,100.44,100.39,9.96102264]
[1769988330736,23.18298132,100.44,100.39,23.18298132]
[1769988330937,84.56102499,100.52,100.43,27.45612636]
[1769988330938,23.18298132,100.5,100.43,27.45612636]
[1769988331118,23.18298132,100.51,100.46,23.18298132]
[1769988331313,23.18298132,100.54,100.48,23.18298132]
[1769988331513,2.47215037,100.59,100.5,0.28432314]
[1769988331718,25.65513169,100.59,100.54,23.18298132]
[1769988332017,23.18298132,100.58,100.53,27.45612636]
[1769988332217,25.65513169,100.59,100.53,27.45612636]
[1769988332417,24.84767075,100.62,100.57,23.18298132]
[1769988332418,23.18298132,100.62,100.57,23.18298132]
[1769988332719,23.18298132,100.58,100.53,4.27314504]
[1769988332919,23.18298132,100.54,100.49,4.27314504]
[1769988333132,14.38799179,100.57,100.5,9.95024875]
[1769988333335,23.18298132,100.54,100.5,9.95024875]
[1769988333540,23.18298132,100.54,100.5,34.82587064]
[1769988333735,14.38748621,100.57,100.49,9.95097498]
[1769988333736,23.18298132,100.52,100.49,9.95097498]
[1769988333919,23.18298132,100.51,100.47,27.66]
[1769988334437,23.18298132,100.51,100.47,50.84298132]
[1769988334641,23.18298132,100.52,100.47,55.4004495]
[1769988334818,23.18298132,100.53,100.48,27.45612636]
[1769988335134,23.18298132,100.5,100.47,27.66]
[1769988335321,23.18298132,100.5,100.47,37.61302461]
[1769988335524,4.27527085,100.54,100.48,27.45612636]
[1769988335730,23.18298132,100.52,100.47,60.79600593]
[1769988335924,23.18298132,100.52,100.47,61.08032907]
[1769988336124,23.18298132,100.54,100.49,27.45612636]
[1769988336325,23.18298132,100.5,100.43,4.27314504]
[1769988336621,23.18298132,100.5,100.45,37.14988595]
[1769988336622,22.92230368,100.5,100.45,37.14988595]
[1769988336817,22.92230368,100.48,100.44,27.66]
[1769988337139,22.92230368,100.5,100.46,9.95421063]
[1769988337321,22.92230368,100.48,100.44,27.66]
[1769988337634,22.92230368,100.56,100.44,27.66]
[1769988337635,4.22232022,100.55,100.48,4.48194739]
[1769988337838,4.22232022,100.55,100.45,34.84298964]
[1769988337839,22.92230368,100.55,100.5,22.92230368]
[1769988338040,22.92230368,100.57,100.52,22.92230368]
[1769988338639,34.78779444,100.61,100.52,22.92230368]
[1769988338640,22.92230368,100.61,100.56,27.40425107]
[1769988338830,22.92230368,100.57,100.53,4.48194739]
[1769988339142,4.27527085,100.65,100.5,4.48194739]
[1769988339143,22.92230368,100.54,100.5,4.48194739]
[1769988339324,22.92230368,100.56,100.51,37.3534366]
[1769988339643,49.61387442,100.72,100.56,4.76627053]
[1769988339833,22.92230368,100.64,100.59,22.92230368]
[1769988340024,22.92230368,100.63,100.59,22.92230368]
[1769988340345,22.92230368,100.66,100.61,22.92230368]
[1769988340515,22.92230368,100.65,100.61,22.92230368]
[1769988340720,0.3109607,100.72,100.58,27.40425107]
[1769988340721,22.92230368,100.63,100.58,27.40425107]
[1769988340922,4.27527085,100.66,100.59,22.92230368]
[1769988341224,0.1,100.67,100.63,22.92230368]
[1769988341538,32.95602952,100.67,100.63,32.12194739]
[1769988341720,22.92230368,100.65,100.63,27.64]
[1769988342037,0.1,100.67,100.64,27.40425107]
[1769988342230,22.92230368,100.7,100.64,4.48194739]
[1769988342543,22.92230368,100.69,100.64,4.48194739]
[1769988342725,22.92230368,100.71,100.66,22.92230368]
[1769988342921,0.3109607,100.72,100.68,27.40425107]
[1769988343140,0.3109607,100.72,100.64,27.64]
[1769988343141,22.92230368,100.71,100.66,14.41609515]
[1769988343326,23.23326438,100.72,100.68,9.9324007]
[1769988343521,22.92230368,100.71,100.67,9.93307901]
[1769988343730,22.92230368,100.71,100.67,4.48194739]
[1769988343933,22.92230368,100.71,100.67,14.41465681]
[1769988344242,0.3109607,100.72,100.69,4.48194739]
[1769988344840,33.16233404,100.72,100.67,27.40425107]
[1769988345015,22.92230368,100.69,100.65,27.40425107]
[1769988345223,22.92230368,100.67,100.62,14.41990539]
[1769988345421,4.27527085,100.71,100.63,4.48194739]
[1769988345621,0.3109607,100.72,100.69,27.40425107]
[1769988345846,0.3109607,100.72,100.7,22.92230368]
[1769988346033,3.58675704,100.8,100.72,4.45038198]
[1769988346236,32.82695171,100.84,100.77,4.16605884]
[1769988346237,22.92230368,100.84,100.77,4.16605884]
[1769988346435,22.92230368,100.84,100.78,27.62]
[1769988346634,22.92230368,100.82,100.78,4.16605884]
[1769988346838,22.92230368,100.81,100.76,54.99268566]
[1769988347035,3.58675704,100.83,100.76,27.62]
[1769988347343,9.92228614,100.79,100.72,4.16605884]
[1769988347548,9.91473329,100.86,100.76,61.96566645]
[1769988347746,22.92230368,100.81,100.77,4.16605884]
[1769988348048,22.92230368,100.82,100.77,27.08836252]
[1769988348344,22.92230368,100.81,100.77,4.16605884]
[1769988348551,22.92230368,100.79,100.75,4.16605884]
[1769988348851,22.92230368,100.77,100.71,22.92230368]
[1769988349051,22.92230368,100.73,100.7,31.78605884]
[1769988349250,34.73600634,100.76,100.7,27.62]
[1769988349545,22.92230368,100.72,100.7,27.62]
[1769988349747,22.92230368,100.73,100.7,27.62]
[1769988350048,22.92230368,100.74,100.7,27.62]
[1769988350425,9.92457324,100.76,100.71,27.08836252]
[1769988350728,9.92457324,100.76,100.67,14.09932763]
[1769988350729,22.92230368,100.72,100.67,14.09932763]
[1769988350929,34.73600634,100.76,100.69,27.08836252]
[1769988351123,32.84914877,100.74,100.69,14.09751846]
[1769988351327,9.92260369,100.78,100.71,27.08836252]
[1769988351528,22.92230368,100.77,100.72,22.92230368]
[1769988351854,22.92230368,100.76,100.71,4.16605884]
[1769988352145,38.31586995,100.78,100.7,4.16605884]
[1769988352450,22.92230368,100.71,100.68,4.16605884]
[1769988353046,22.92230368,100.75,100.7,27.08836252]
[1769988353225,22.92230368,100.73,100.68,37.02080721]
[1769988353628,22.92230368,100.72,100.68,4.16605884]
[1769988353847,22.92230368,100.71,100.68,4.16605884]
[1769988354232,22.92230368,100.73,100.69,9.93073342]
[1769988354443,22.92230368,100.73,100.7,9.93033082]
[1769988354643,22.92230368,100.75,100.7,37.01869334]
[1769988354844,3.58675704,100.85,100.72,4.30822041]
[1769988355046,22.92230368,100.81,100.76,22.92230368]
[1769988355239,3.58675704,100.83,100.76,9.92457324]
[1769988355441,34.71533425,100.82,100.75,64.61374221]
[1769988355658,22.92230368,100.78,100.75,27.6]
[1769988355840,22.92230368,100.76,100.7,4.16605884]
[1769988356045,22.92230368,100.76,100.71,37.0177191]
[1769988356439,22.92230368,100.75,100.71,14.09541542]
[1769988356640,22.92230368,100.76,100.71,37.0177191]
[1769988356863,22.92230368,100.74,100.7,9.93012987]
[1769988357055,22.92230368,100.73,100.7,9.92965638]
[1769988357253,3.58675704,100.77,100.69,14.09738953]
[1769988357455,4.27527085,100.79,100.69,14.09738953]
[1769988357456,22.92230368,100.75,100.7,27.08836252]
[1769988357758,22.92230368,100.84,100.75,4.45038198]
[1769988357941,36.42477713,100.85,100.79,22.92230368]
[1769988358130,36.42477713,100.85,100.78,22.92230368]
[1769988358131,22.92230368,100.83,100.78,22.92230368]
[1769988358331,22.92230368,100.84,100.78,27.08836252]
[1769988358536,22.92230368,100.82,100.78,4.16605884]
[1769988358968,34.70500743,100.85,100.78,27.08836252]
[1769988359253,22.92230368,100.83,100.78,27.08836252]
[1769988359434,32.8391566,100.84,100.79,32.84392288]
[1769988359839,3.68675704,100.86,100.79,32.84392288]
[1769988359840,13.60246199,100.86,100.8,22.92230368]
[1769988360044,22.92230368,100.85,100.8,22.92230368]
[1769988360244,22.92230368,100.82,100.79,4.16605884]
[1769988360440,22.92230368,100.85,100.8,27.08836252]
[1769988360645,32.93800863,100.86,100.81,22.92230368]
[1769988360841,32.93800863,100.86,100.78,4.16605884]
[1769988360842,22.92230368,100.82,100.78,4.16605884]
[1769988361154,3.58675704,100.85,100.78,4.16605884]
[1769988361363,22.92230368,100.83,100.78,37.01076659]
[1769988361579,9.91669972,100.84,100.78,37.01076659]
[1769988361857,22.92230368,100.82,100.78,4.16605884]
[1769988362060,9.91600982,100.85,100.73,28.5927529]
[1769988362061,3.58675704,100.84,100.76,4.16605884]
[1769988362249,22.92230368,100.79,100.75,4.16605884]
[1769988362557,22.92230368,100.79,100.75,14.09104489]
[1769988362761,22.92230368,100.76,100.69,4.16605884]
[1769988362966,22.92230368,100.7,100.66,4.16605884]
[1769988363139,22.92230368,100.68,100.64,14.1017538]
[1769988363344,22.92230368,100.67,100.64,14.1017538]
[1769988363646,22.92230368,100.69,100.66,4.16605884]
[1769988363953,22.92230368,100.67,100.61,4.16605884]
[1769988364152,22.92230368,100.65,100.62,4.16605884]
[1769988364459,22.92230368,100.63,100.6,14.10632657]
[1769988364652,22.92230368,100.64,100.6,14.10632657]
[1769988364844,3.58675704,100.68,100.58,50.50230368]
[1769988364845,22.92230368,100.61,100.58,4.16605884]
[1769988365160,22.92230368,100.59,100.53,27.58]
[1769988365369,3.68637084,100.63,100.51,22.92230368]
[1769988365370,34.79125248,100.6,100.51,22.92230368]
[1769988365546,22.92230368,100.56,100.51,22.92230368]
[1769988365741,9.93975176,100.61,100.5,24.87446541]
[1769988365964,22.92230368,100.56,100.5,24.87446541]
[1769988366358,34.78817636,100.61,100.52,22.92230368]
[1769988366359,22.92230368,100.58,100.52,22.92230368]
[1769988366541,49.67466166,100.66,100.5,24.87446541]
[1769988366542,13.61784367,100.69,100.57,22.92230368]
[1769988366746,22.92230368,100.63,100.58,22.92230368]
[1769988366962,3.68637084,100.65,100.54,32.94086188]
[1769988367165,22.92230368,100.63,100.58,22.92230368]
[1769988367367,17.89550293,100.67,100.59,61.88307371]
[1769988367543,22.92230368,100.63,100.59,4.16605884]
[1769988367970,3.68637084,100.66,100.59,4.16605884]
[1769988368263,22.92230368,100.6,100.57,9.94293241]
[1769988368465,3.68637084,100.65,100.58,9.94231594]
[1769988368970,22.92230368,100.6,100.56,4.25641149]
[1769988369269,3.68637084,100.63,100.56,9.94362947]
[1769988369444,22.92230368,100.57,100.51,22.92230368]
[1769988369644,22.92230368,100.55,100.54,9.94629003]
[1769988369867,34.78445508,100.62,100.54,14.20270152]
[1769988370069,14.21297731,100.63,100.55,4.25641149]
[1769988370385,22.92230368,100.61,100.56,27.17871517]
[1769988370552,22.92230368,100.6,100.55,4.25641149]
[1769988370748,22.92230368,100.58,100.54,9.94613452]
[1769988370945,3.68637084,100.62,100.52,61.99578792]
[1769988371162,22.92230368,100.57,100.53,4.25641149]
[1769988371369,22.92230368,100.56,100.53,14.20348086]
[1769988371666,3.68637084,100.62,100.53,34.81526791]
[1769988371873,22.92230368,100.6,100.55,22.92230368]
[1769988372050,22.92230368,100.61,100.57,22.92230368]
[1769988372251,3.68637084,100.64,100.58,22.92230368]
[1769988372450,22.92230368,100.66,100.61,22.92230368]
[1769988372671,22.92230368,100.66,100.57,5.36086188]
[1769988372672,22.92230368,100.69,100.64,22.92230368]
[1769988372971,22.92230368,100.7,100.65,22.92230368]
[1769988373181,3.68637084,100.71,100.58,53.81179918]
[1769988373182,22.92230368,100.68,100.63,27.17871517]
[1769988373352,22.92230368,100.69,100.64,22.92230368]
[1769988373558,22.92230368,100.71,100.66,27.17871517]
[1769988373880,22.92230368,100.67,100.62,4.25641149]
[1769988374185,22.92230368,100.67,100.62,27.17871517]
[1769988374361,22.92230368,100.65,100.62,9.93766323]
[1769988374551,3.68637084,100.67,100.58,4.25641149]
[1769988374876,22.92230368,100.65,100.61,22.92230368]
[1769988375071,22.92230368,100.65,100.6,27.17871517]
[1769988375258,22.92230368,100.65,100.61,4.25641149]
[1769988375570,54.68040767,100.75,100.6,22.92230368]
[1769988375571,22.92230368,100.67,100.63,27.17871517]
[1769988375760,3.68637084,100.71,100.63,27.17871517]
[1769988375957,22.92230368,100.69,100.64,27.17871517]
[1769988376152,22.92230368,100.67,100.63,22.92230368]
[1769988376378,22.92230368,100.67,100.62,39.04074859]
[1769988376591,22.92230368,100.67,100.63,27.17871517]
[1769988377070,22.92230368,100.64,100.61,14.19546429]
[1769988377276,9.92873831,100.72,100.63,27.17871517]
[1769988377571,22.92230368,100.69,100.64,61.95613964]
[1769988378152,22.92230368,100.69,100.65,22.92230368]
[1769988378353,22.92230368,100.67,100.64,9.93640699]
[1769988378569,22.92230368,100.65,100.62,14.19402838]
[1769988378770,39.02571651,100.72,100.57,4.27527085]
[1769988378771,3.68637084,100.71,100.63,14.1935235]
[1769988378972,22.92230368,100.65,100.62,9.93798369]
[1769988379266,22.92230368,100.66,100.63,9.9364181]
[1769988379479,22.92230368,100.71,100.66,39.02692608]
[1769988379657,22.92230368,100.7,100.66,61.94922976]
[1769988379854,22.92230368,100.7,100.66,14.19084423]
[1769988380287,27.6,100.76,100.67,4.25641149]
[1769988380467,22.92230368,100.74,100.7,22.92230368]
[1769988380773,22.92230368,100.74,100.7,4.25641149]
[1769988380990,22.92230368,100.76,100.71,22.92230368]
[1769988381170,22.92230368,100.76,100.72,22.92230368]
[1769988381367,22.92230368,100.73,100.67,22.92230368]
[1769988381594,22.92230368,100.72,100.68,9.93245927]
[1769988381883,22.92230368,100.72,100.68,34.76360746]
[1769988382057,22.92230368,100.74,100.69,27.17871517]
[1769988382453,24.80005985,100.81,100.72,4.25641149]
[1769988382672,22.92230368,100.77,100.72,27.17871517]
[1769988382874,22.92230368,100.76,100.72,4.25641149]
[1769988383179,4.27527085,100.78,100.72,22.92230368]
[1769988383365,22.92230368,100.75,100.71,4.25641149]
[1769988383571,22.92230368,100.78,100.73,27.17871517]
[1769988383880,3.68637084,100.81,100.73,27.17871517]
[1769988384065,22.92230368,100.81,100.76,22.92230368]
[1769988384260,0.1,100.82,100.78,22.92230368]
[1769988384475,0.1,100.82,100.72,40.1106633]
[1769988384476,22.92230368,100.81,100.75,4.25641149]
[1769988384779,22.92230368,100.8,100.75,27.17871517]
[1769988384961,22.92230368,100.77,100.73,4.25641149]
[1769988385161,22.92230368,100.76,100.73,4.25641149]
[1769988385356,1e-08,100.82,100.73,4.25641149]
[1769988385556,22.92230368,100.78,100.75,4.25641149]
[1769988385779,9.91965082,100.81,100.75,4.25641149]
[1769988385963,3.68637084,100.79,100.71,4.25641149]
[1769988386170,10.08458824,100.78,100.73,9.9274329]
[1769988386481,3.68637084,100.78,100.71,14.1854999]
[1769988386663,3.68637084,100.78,100.73,9.92747392]
[1769988386869,22.92230368,100.74,100.73,9.92747392]
[1769988387377,22.92230368,100.74,100.68,4.25641149]
[1769988387572,22.92230368,100.71,100.69,9.93147283]
[1769988387883,3.64950713,100.75,100.69,9.93147283]
[1769988388088,3.64950713,100.75,100.66,4.25641149]
[1769988388284,3.64950713,100.73,100.66,4.25641149]
[1769988388475,3.64950713,100.71,100.64,4.25641149]
[1769988388787,3.64950713,100.66,100.51,4.25641149]
[1769988388976,3.64950713,100.65,100.56,4.25641149]
[1769988389167,7.92477798,100.67,100.59,4.25641149]
[1769988389367,3.64950713,100.64,100.52,88.81669799]
[1769988389564,13.58887697,100.61,100.53,4.25641149]
[1769988389778,13.58887697,100.61,100.52,34.8189415]
[1769988389779,10.02701699,100.6,100.52,9.948269]
[1769988389964,10.02701699,100.59,100.52,39.07533566]
[1769988390285,3.64950713,100.59,100.52,39.07533566]
[1769988390460,3.64950713,100.6,100.52,9.94825167]
[1769988390970,39.06306529,100.61,100.51,4.25641149]
[1769988390971,3.64950713,100.58,100.51,14.20541084]
[1769988391371,3.64950713,100.58,100.52,9.94813096]
[1769988391565,13.59206257,100.58,100.51,14.20529139]
[1769988391775,3.64950713,100.57,100.49,4.25641149]
[1769988391996,3.64950713,100.56,100.47,4.25641149]
[1769988392183,7.92477798,100.57,100.49,4.25641149]
[1769988392379,3.64950713,100.56,100.48,4.25641149]
[1769988392575,3.64950713,100.56,100.5,9.95016305]
[1769988392977,3.64950713,100.56,100.49,14.20738462]
[1769988393293,3.64950713,100.56,100.5,9.95006019]
[1769988394388,3.64950713,100.54,100.44,4.25641149]
[1769988394568,3.64950713,100.51,100.42,4.25641149]
[1769988394763,4.32638873,100.5,100.42,4.25641149]
[1769988394962,0.6768816,100.5,100.43,4.25641149]
[1769988395170,0.6768816,100.5,100.44,14.21177647]
[1769988395395,0.6768816,100.5,100.45,4.25641149]
[1769988395590,0.6768816,100.49,100.45,4.25641149]
[1769988395982,9.94530084,100.55,100.48,4.25641149]
[1769988396183,13.59480797,100.55,100.48,22.92230368]
[1769988396400,3.64950713,100.54,100.47,14.20868489]
[1769988396895,9.94530084,100.55,100.49,4.25641149]
[1769988397097,13.59407477,100.56,100.49,4.25641149]
[1769988397302,3.64950713,100.55,100.47,4.25641149]
[1769988397699,3.64950713,100.55,100.47,14.20943452]
[1769988397907,3.64950713,100.55,100.48,27.35991259]
[1769988398277,13.59508515,100.55,100.48,14.39023164]
[1769988398990,13.59508515,100.55,100.48,37.31135327]
[1769988399316,13.59414764,100.56,100.48,37.31203289]
[1769988399692,13.59414764,100.56,100.48,14.39091126]
[1769988399892,3.64950713,100.55,100.48,14.39091126]
[1769988400099,3.64950713,100.54,100.46,4.43879096]
[1769988400405,13.59678654,100.53,100.46,4.43879096]
[1769988400607,13.59678654,100.53,100.46,14.39295788]
[1769988400783,13.59678654,100.53,99.81,90.08290592]
[1769988400784,3.64950713,100.51,100.4,0.2]
[1769988400983,3.5411131,100.46,100.37,5.12735858]
[1769988401285,3.43593849,100.41,100.36,0.12953184]
[1769988401494,31.05593849,100.41,100.36,0.12953184]
[1769988401796,3.43593849,100.4,100.36,0.12953184]
[1769988401998,3.43593849,100.4,100.34,0.2]
[1769988402301,9.95892948,100.42,100.35,14.4036911]
[1769988402511,5.36086188,100.47,100.36,4.43879096]
[1769988402512,17.66864972,100.43,100.36,4.43879096]
[1769988402681,17.66667034,100.45,100.37,27.35991259]
[1769988402999,3.43593849,100.43,100.36,4.43879096]
[1769988403394,3.43593849,100.4,100.34,4.63879096]
[1769988403907,3.43593849,100.44,100.36,27.35991259]
[1769988404405,13.39221608,100.44,100.37,14.40192735]
[1769988404706,35.33120934,100.46,100.38,4.43879096]
[1769988404883,31.05593849,100.46,100.38,4.43879096]
[1769988405083,65.89577181,100.46,100.38,4.43879096]
[1769988405284,9.95430675,100.46,100.4,4.43879096]
[1769988405501,3.43593849,100.48,100.4,27.35991259]
[1769988405704,3.43593849,100.47,100.4,4.43879096]
[1769988405901,3.43593849,100.47,100.38,4.47411427]
[1769988406407,13.39014912,100.46,100.38,14.43564052]
[1769988406782,66.13593849,100.45,100.38,4.47411427]
[1769988406987,3.43593849,100.44,100.36,14.43751394]
[1769988407184,3.43593849,100.42,100.34,0.2]
[1769988407405,66.13593849,100.43,100.36,4.47411427]
[1769988407585,3.43593849,100.42,100.36,4.47411427]
[1769988407790,62.7,100.43,100.37,4.47411427]
[1769988407985,4.27527085,100.44,100.38,9.96207098]
[1769988407986,166.7,100.42,100.38,9.96207098]
[1769988408713,104.0,100.42,100.4,4.47411427]
[1769988408911,62.7,100.41,100.38,34.86743061]
[1769988409122,58.2,100.41,100.38,34.86743061]
[1769988409411,58.2,100.41,100.38,9.96207098]
[1769988409589,58.2,100.41,100.37,9.96284908]
[1769988409792,104.0,100.42,100.37,9.96284908]
[1769988409793,58.2,100.4,100.37,9.96284908]
[1769988410710,58.2,100.4,100.37,34.87069006]
[1769988410919,4.1623669,100.44,100.37,57.79181169]
[1769988411093,4.1623669,100.44,100.38,22.92112163]
[1769988411299,4.1623669,100.44,100.39,22.92112163]
[1769988411607,4.1623669,100.44,100.37,62.26592596]
[1769988411783,4.1623669,100.44,100.38,22.92112163]
[1769988412493,4.1623669,100.44,100.38,27.3952359]
[1769988412812,4.1623669,100.44,100.39,9.96043595]
[1769988413591,4.1623669,100.41,100.35,4.47411427]
[1769988413790,9.95649586,100.44,100.38,27.3952359]
[1769988413987,14.11886276,100.44,100.38,4.47411427]
[1769988414184,27.66,100.47,100.4,22.92112163]
[1769988414185,3.74456838,100.47,100.4,22.92112163]
[1769988414389,3.74456838,100.47,100.41,22.92112163]
[1769988414591,4.1623669,100.5,100.43,27.3952359]
[1769988414809,14.11268375,100.5,100.46,22.92112163]
[1769988415009,4.1623669,100.5,100.45,22.92112163]
[1769988415197,14.11289508,100.5,100.44,37.35117636]
[1769988415510,4.1623669,100.5,100.45,22.92112163]
[1769988415713,14.11266435,100.5,100.43,4.47411427]
[1769988416014,4.1623669,100.49,100.43,4.47411427]
[1769988416394,4.1623669,100.49,100.44,22.92112163]
[1769988416593,4.1623669,100.49,100.43,4.47411427]
[1769988416793,14.11367275,100.49,100.43,37.35240998]
[1769988417301,14.11367275,100.49,100.43,14.43128835]
[1769988417507,4.1623669,100.51,100.44,4.47411427]
[1769988417697,4.1623669,100.51,100.44,27.3952359]
[1769988417899,22.92112163,100.49,100.44,27.3952359]
[1769988418094,27.08348853,100.51,100.46,22.92112163]
[1769988418295,37.03280532,100.51,100.46,22.92112163]
[1769988418495,22.92112163,100.5,100.45,27.3952359]
[1769988419519,22.92112163,100.5,100.46,9.95421063]
[1769988420408,27.08348853,100.54,100.48,27.3952359]
[1769988420706,113.94569415,100.55,100.5,27.3952359]
[1769988420907,37.02796445,100.56,100.51,22.92112163]
[1769988421109,27.08348853,100.58,100.53,22.92112163]
[1769988421515,22.92112163,100.59,100.55,9.94530084]
[1769988421697,4.1623669,100.6,100.56,22.92112163]
[1769988421896,4.2623669,100.6,100.56,22.92112163]
[1769988422100,0.1,100.6,100.56,22.92112163]
[1769988422300,4.1623669,100.64,100.58,22.92112163]
[1769988422502,22.92112163,100.63,100.58,27.3952359]
[1769988422702,14.09897028,100.64,100.58,27.3952359]
[1769988422703,27.08348853,100.64,100.59,22.92112163]
[1769988422927,27.08348853,100.66,100.6,22.92112163]
[1769988423120,22.92112163,100.64,100.59,27.3952359]
[1769988423618,22.92112163,100.64,100.59,37.3356585]
[1769988423812,27.08348853,100.66,100.61,22.92112163]
[1769988424019,4.1623669,100.66,100.6,27.3952359]
[1769988424220,27.08348853,100.66,100.6,27.3952359]
[1769988424418,22.92112163,100.65,100.6,27.3952359]
[1769988424615,22.92112163,100.67,100.62,27.3952359]
[1769988424818,22.92112163,100.67,100.62,4.47411427]
[1769988425026,22.92112163,100.67,100.62,27.3952359]
[1769988425228,27.08348853,100.68,100.63,22.92112163]
[1769988425416,22.92112163,100.66,100.61,27.3952359]
[1769988425610,22.92112163,100.65,100.61,14.41330101]
[1769988425826,22.92112163,100.66,100.62,22.92112163]
[1769988426024,4.1623669,100.69,100.64,22.92112163]
[1769988426225,22.92112163,100.7,100.65,27.3952359]
[1769988426534,37.01308376,100.71,100.66,22.92112163]
[1769988426836,5.18914313,100.79,100.7,22.92112163]
[1769988427014,5.18914313,100.79,100.69,22.92112163]
[1769988427015,22.92112163,100.74,100.69,22.92112163]
[1769988427411,4.27527085,100.75,100.66,27.64]
[1769988427619,22.92112163,100.72,100.67,36.9174807]
[1769988427817,22.92112163,100.68,100.64,4.06291316]
[1769988428117,22.92112163,100.73,100.68,4.06291316]
[1769988428322,22.92112163,100.73,100.68,26.98403479]
[1769988428529,22.92112163,100.73,100.69,4.06291316]
[1769988428707,22.92112163,100.71,100.67,4.06291316]
[1769988428913,22.92112163,100.7,100.66,36.91836352]
[1769988429146,22.92112163,100.7,100.66,13.99724189]
[1769988429330,22.92112163,100.68,100.64,31.68291316]
[1769988429533,22.92112163,100.69,100.64,54.60403479]
[1769988429830,22.92112163,100.72,100.67,26.98403479]
[1769988430025,22.92112163,100.72,100.68,22.92112163]
[1769988430213,22.92112163,100.72,100.67,26.98403479]
[1769988430407,31.91527085,100.75,100.68,26.98403479]
[1769988430615,27.2627986,100.75,100.7,22.92112163]
[1769988430907,27.2627986,100.75,100.7,26.98403479]
[1769988431120,22.92112163,100.74,100.7,4.06291316]
[1769988431308,22.92112163,100.73,100.68,22.92112163]
[1769988431512,22.92112163,100.74,100.69,61.74418971]
[1769988432118,27.2627986,100.75,100.7,22.92112163]
[1769988432324,22.92112163,100.74,100.69,61.74418971]
[1769988432718,14.26731839,100.75,100.69,13.99438599]
[1769988432719,22.92112163,100.73,100.69,13.99438599]
[1769988433230,14.26731839,100.75,100.69,13.99438599]
[1769988433531,22.92112163,100.71,100.66,52.45457674]
[1769988433736,22.92112163,100.7,100.66,31.68291316]
[1769988433938,27.2627986,100.68,100.61,4.06291316]
[1769988434118,4.34167697,100.67,100.62,9.93812871]
[1769988434312,22.92112163,100.65,100.62,9.93812871]
[1769988434518,22.92112163,100.64,100.61,4.06291316]
[1769988434833,22.92112163,100.64,100.62,9.93836867]
[1769988435032,22.92112163,100.63,100.59,4.06291316]
[1769988435217,22.92112163,100.64,100.61,9.93874895]
[1769988435417,27.2627986,100.67,100.62,9.93820403]
[1769988435831,4.34167697,100.69,100.64,22.92112163]
[1769988436026,22.92112163,100.69,100.64,4.06291316]
[1769988436421,37.19357357,100.7,100.64,26.98403479]
[1769988436919,22.92112163,100.67,100.63,4.06291316]
[1769988437238,22.92112163,100.7,100.66,4.06291316]
[1769988437643,22.92112163,100.71,100.66,36.91760923]
[1769988437845,22.92112163,100.73,100.68,4.06291316]
[1769988438149,22.92112163,100.73,100.66,4.06291316]
[1769988438150,22.92112163,100.71,100.66,4.06291316]
[1769988438441,22.92112163,100.69,100.64,36.92033639]
[1769988438644,22.92112163,100.68,100.64,13.99921476]
[1769988438839,22.92112163,100.69,100.65,9.93515027]
[1769988439421,14.26856728,100.74,100.67,26.98403479]
[1769988439746,22.92112163,100.73,100.68,36.91572354]
[1769988439930,27.2627986,100.73,100.68,13.99460191]
[1769988440129,27.2627986,100.73,100.68,36.91572354]
[1769988440344,27.2627986,100.73,100.68,13.99460191]
[1769988440536,32.84734706,100.75,100.7,22.92112163]
[1769988441149,22.92112163,100.74,100.69,26.98403479]
[1769988441321,32.84734706,100.75,100.7,22.92112163]
[1769988441839,32.84734706,100.75,100.7,32.85078714]
[1769988442320,9.92622543,100.75,100.7,32.73895434]
[1769988442518,9.92622543,100.75,100.7,9.92966551]
[1769988443440,14.26663262,100.76,100.7,32.73895434]
[1769988443647,4.34167697,100.75,100.7,9.92966551]
[1769988443850,9.92277192,100.78,100.72,26.87220199]
[1769988444057,4.34167697,100.78,100.72,4.06291316]
[1769988444546,4.34167697,100.78,100.72,26.87220199]
[1769988444731,4.34167697,100.78,100.73,4.06291316]
[1769988445329,14.26461569,100.78,100.73,13.9896114]
[1769988445659,4.27527085,100.75,100.49,49.58185179]
[1769988445819,4.27527085,100.65,100.51,9.94925878]
[1769988446023,4.27527085,100.55,100.51,57.63169456]
[1769988446238,4.27527085,100.55,100.49,0.2]
[1769988446239,4.34167697,100.54,100.49,0.2]
[1769988446437,4.27527085,100.55,100.49,0.2]
[1769988446639,4.00030818,100.57,100.49,0.2]
[1769988446948,2.85107525,100.58,100.5,9.95024026]
[1769988447141,4.34167697,100.62,100.54,22.80928883]
[1769988447324,9.93936984,100.61,100.56,22.80928883]
[1769988447520,9.93936984,100.61,100.5,34.82586215]
[1769988447521,4.34167697,100.61,100.54,22.80928883]
[1769988447721,4.34167697,100.57,100.51,1.40567056]
[1769988448246,4.34167697,100.59,100.53,24.21495939]
[1769988448429,9.93456932,100.66,100.59,1.40567056]
[1769988448628,4.34167697,100.65,100.57,1.40567056]